fUST/lending_fUST_20250222
["ID","MTS","AMOUNT","RATE_DAILY","PERIOD"]
[353986937,1740174641470,-500.0,0.00013863,2]
[353986939,1740174641479,-6139.83,0.00013863,2]
[353986941,1740174641488,-500.0,0.00013863,2]
[353986953,1740174641588,-500.0,0.00013863,2]
[353986955,1740174641599,-500.0,0.00013863,2]
[353986958,1740174641610,-500.0,0.00013863,2]
[353986960,1740174641619,-500.0,0.00013863,2]
[353986962,1740174641628,-504.16024629,0.00013863,2]
[353986964,1740174641637,-500.0,0.00013863,2]
[353986966,1740174641646,-1669.65,0.00013863,2]
[353986968,1740174641655,-500.0,0.00013863,2]
[353986970,1740174641664,-647.76,0.00013863,2]
[353986971,1740174641673,-500.0,0.00013863,2]
[353986973,1740174641681,-500.0,0.00013863,2]
[353986975,1740174641690,-544.3,0.00013863,2]
[353986978,1740174641699,-1165.05,0.00013863,2]
[353986979,1740174641708,-500.0,0.00013863,2]
[353986981,1740174641717,-500.0,0.00013863,2]
[353986983,1740174641726,-658.12,0.00013863,2]
[353986985,1740174641735,-500.0,0.00013863,2]
[353986987,1740174641744,-3819.04,0.00013863,2]
[353986989,1740174641753,-501.15554577,0.00013863,2]
[353986991,1740174641763,-500.0,0.00013863,2]
[353986993,1740174641772,-849.08,0.00013863,2]
[353986995,1740174641781,-500.0,0.00013863,2]
[353986997,1740174641790,-500.0,0.00013863,2]
[353987000,1740174641799,-500.0,0.00013863,2]
[353987002,1740174641808,-500.0,0.00013863,2]
[353987004,1740174641817,-500.0,0.00013863,2]
[353987006,1740174641826,-500.0,0.00013863,2]
[353987008,1740174641835,-734.9,0.00013863,2]
[353987010,1740174641844,-500.0,0.00013863,2]
[353987012,1740174641853,-500.0,0.00013863,2]
[353987013,1740174641862,-1673.05,0.00013863,2]
[353987016,1740174641872,-500.0,0.00013863,2]
[353987018,1740174641881,-500.0,0.00013863,2]
[353987020,1740174641889,-500.0,0.00013863,2]
[353987022,1740174641898,-558.68,0.00013863,2]
[353987024,1740174641907,-500.0,0.00013863,2]
[353987026,1740174641916,-500.0,0.00013863,2]
[353987028,1740174641925,-501.47185371,0.00013863,2]
[353987030,1740174641934,-500.0,0.00013863,2]
[353987032,1740174641943,-500.0,0.00013863,2]
[353987034,1740174641952,-500.0,0.00013863,2]
[353987036,1740174641961,-687.65,0.00013863,2]
[353987038,1740174641970,-306.58259879,0.00013922,2]
[353987040,1740174641979,-1131.63,0.00013944,2]
[353987042,1740174641988,-500.0,0.00013945,2]
[353987044,1740174641997,-500.0,0.00013945,2]
[353987046,1740174642007,-500.0,0.00013945,2]
[353987047,1740174642016,-500.0,0.00013945,2]
[353987049,1740174642026,-237.84,0.00013945,2]
[353987052,1740174642035,-2257.61,0.00013945,2]
[353987054,1740174642045,-500.0,0.00013945,2]
[353987056,1740174642054,-500.0,0.00013945,2]
[353987058,1740174642063,-500.0,0.00013945,2]
[353987060,1740174642073,-500.0,0.00013945,2]
[353987062,1740174642082,-716.04,0.00013945,2]
[353987064,1740174642091,-500.0,0.00013945,2]
[353987066,1740174642100,-500.0,0.00013945,2]
[353987068,1740174642109,-500.0,0.00013945,2]
[353987070,1740174642119,-500.0,0.00013945,2]
[353987072,1740174642129,-500.0,0.00013945,2]
[353987074,1740174642138,-499.1,0.00013945,2]
[353987076,1740174642147,-447.77546244,0.00013945,2]
[353987077,1740174642157,-663.3,0.00013945,2]
[353987079,1740174642166,-500.0,0.00013945,2]
[353987082,1740174642175,-6139.83,0.00013945,2]
[353987084,1740174642185,-500.0,0.00013945,2]
[353987086,1740174642200,-500.0,0.00013945,2]
[353987088,1740174642210,-500.0,0.00013945,2]
[353987090,1740174642219,-500.0,0.00013945,2]
[353987091,1740174642231,-500.0,0.00013945,2]
[353987093,1740174642240,-500.0,0.00013945,2]
[353987095,1740174642250,-1669.65,0.00013945,2]
[353987097,1740174642261,-174.93,0.00013945,2]
[353987099,1740174642274,-647.76,0.00013945,2]
[353987101,1740174642284,-500.0,0.00013945,2]
[353987103,1740174642293,-506.261334,0.00013945,2]
[353987105,1740174642303,-445.6007317,0.00013945,2]
[353987108,1740174642320,-98.6992683,0.00013945,2]
[353987110,1740174642334,-377.0507317,0.00013945,2]
[353987112,1740174642347,-787.9992683,0.00013945,2]
[353987114,1740174642357,-500.0,0.00013945,2]
[353987116,1740174642366,-500.0,0.00013945,2]
[353987118,1740174642376,-658.12,0.00013945,2]
[353987120,1740174642386,-3819.04,0.00013945,2]
[353987122,1740174642395,-849.08,0.00013945,2]
[353987124,1740174642405,-285.02,0.00013945,2]
[353987126,1740174642415,-500.0,0.00013945,2]
[353987128,1740174642424,-364.62900794,0.00013945,2]
[353987130,1740174642435,-500.0,0.00013945,2]
[353987132,1740174642444,-500.0,0.00013945,2]
[353987134,1740174642455,-734.9,0.00013945,2]
[353987136,1740174642464,-500.0,0.00013945,2]
[353987138,1740174642474,-500.0,0.00013945,2]
[353987140,1740174642484,-1673.05,0.00013945,2]
[353987142,1740174642494,-500.0,0.00013945,2]
[353987144,1740174642504,-500.0,0.00013945,2]
[353987146,1740174642515,-500.0,0.00013945,2]
[353987147,1740174642525,-558.68,0.00013945,2]
[353987149,1740174642535,-500.0,0.00013945,2]
[353987151,1740174642545,-500.0,0.00013945,2]
[353987153,1740174642555,-500.0,0.00013945,2]
[353987156,1740174642564,-687.65,0.00013945,2]
[353987159,1740174642574,-4056.55028879,0.00013986,2]
[353987162,1740174642583,-1131.63,0.00013987,2]
[353987165,1740174642593,-2028.2751444,0.00013987,2]
[353987167,1740174642603,-500.0,0.00013987,2]
[353987170,1740174642612,-500.0,0.00013987,2]
[353987173,1740174642621,-381.02126078,0.00013987,2]
[353987176,1740174642632,-500.0,0.00013987,2]
[353987179,1740174642642,-632.28728279,0.00013987,2]
[353987183,1740174642651,-173.11911641,0.00013987,2]
[353987187,1740174642661,-500.0,0.00013987,2]
[353987190,1740174642670,-2028.2751444,0.00013988,2]
[353987194,1740174642680,-4056.55028879,0.00013988,2]
[353987197,1740174642690,-2028.2751444,0.00013989,2]
[353987200,1740174642699,-4056.55028879,0.00013995,2]
[353987203,1740174642709,-151.0,0.00014,2]
[353987206,1740174642718,-180.7191012,0.00014009,2]
[353987209,1740174642729,-1131.63,0.00014026,2]
[353987212,1740174642739,-500.0,0.00014027,2]
[353987215,1740174642748,-500.0,0.00014027,2]
[353987218,1740174642758,-500.0,0.00014027,2]
[353987220,1740174642767,-213.14517632,0.00014027,2]
[353987223,1740174642777,-2257.61,0.00014027,2]
[353987226,1740174642786,-496.62,0.00014027,2]
[353987230,1740174642796,-500.0,0.00014027,2]
[353987233,1740174642806,-716.04,0.00014027,2]
[353987235,1740174642815,-500.0,0.00014027,2]
[353987238,1740174642824,-500.0,0.00014027,2]
[353987241,1740174642833,-500.0,0.00014027,2]
[353987244,1740174642842,-268.62439093,0.00014027,2]
[353987246,1740174642851,-663.3,0.00014027,2]
[353987249,1740174642860,-6139.83,0.00014027,2]
[353987251,1740174642870,-500.0,0.00014027,2]
[353987253,1740174642879,-500.0,0.00014027,2]
[353987255,1740174642888,-500.0,0.00014027,2]
[353987257,1740174642898,-500.0,0.00014027,2]
[353987259,1740174642907,-500.0,0.00014027,2]
[353987261,1740174642916,-1669.65,0.00014027,2]
[353987264,1740174642925,-647.76,0.00014027,2]
[353987267,1740174642934,-500.0,0.00014027,2]
[353987270,1740174642943,-544.3,0.00014027,2]
[353987273,1740174642953,-1165.05,0.00014027,2]
[353987276,1740174642962,-500.0,0.00014027,2]
[353987279,1740174642971,-658.12,0.00014027,2]
[353987282,1740174642981,-3819.04,0.00014027,2]
[353987285,1740174642990,-849.08,0.00014027,2]
[353987288,1740174642999,-500.0,0.00014027,2]
[353987291,1740174643009,-500.0,0.00014027,2]
[353987294,1740174643019,-500.0,0.00014027,2]
[353987297,1740174643028,-734.9,0.00014027,2]
[353987300,1740174643038,-500.0,0.00014027,2]
[353987303,1740174643047,-500.0,0.00014027,2]
[353987305,1740174643056,-1673.05,0.00014027,2]
[353987308,1740174643065,-500.0,0.00014027,2]
[353987311,1740174643074,-500.0,0.00014027,2]
[353987314,1740174643084,-500.0,0.00014027,2]
[353987317,1740174643093,-558.68,0.00014027,2]
[353987319,1740174643102,-500.0,0.00014027,2]
[353987322,1740174643112,-500.0,0.00014027,2]
[353987325,1740174643121,-500.0,0.00014027,2]
[353987328,1740174643131,-687.65,0.00014027,2]
[353987331,1740174643140,-420.0,0.00014053,2]
[353987334,1740174643149,-151.0,0.000141,2]
[353987337,1740174643159,-151.0,0.000141,2]
[353987340,1740174643168,-1131.63,0.00014108,2]
[353987343,1740174643177,-500.0,0.00014109,2]
[353987346,1740174643186,-500.0,0.00014109,2]
[353987349,1740174643198,-499.72,0.00014109,2]
[353987352,1740174643207,-2257.61,0.00014109,2]
[353987355,1740174643217,-500.0,0.00014109,2]
[353987358,1740174643227,-716.04,0.00014109,2]
[353987361,1740174643237,-204.93,0.00014109,2]
[353987364,1740174643246,-500.0,0.00014109,2]
[353987368,1740174643256,-663.3,0.00014109,2]
[353987370,1740174643267,-6139.83,0.00014109,2]
[353987373,1740174643276,-500.0,0.00014109,2]
[353987376,1740174643286,-500.0,0.00014109,2]
[353987379,1740174643295,-500.0,0.00014109,2]
[353987382,1740174643304,-500.0,0.00014109,2]
[353987384,1740174643312,-500.0,0.00014109,2]
[353987387,1740174643322,-1669.65,0.00014109,2]
[353987390,1740174643331,-647.76,0.00014109,2]
[353987395,1740174643341,-500.0,0.00014109,2]
[353987397,1740174643350,-544.3,0.00014109,2]
[353987401,1740174643359,-1165.05,0.00014109,2]
[353987403,1740174643368,-500.0,0.00014109,2]
[353987406,1740174643378,-658.12,0.00014109,2]
[353987409,1740174643387,-3819.04,0.00014109,2]
[353987412,1740174643396,-849.08,0.00014109,2]
[353987415,1740174643405,-500.0,0.00014109,2]
[353987418,1740174643414,-179.91,0.00014109,2]
[353987420,1740174643423,-500.0,0.00014109,2]
[353987424,1740174643432,-734.9,0.00014109,2]
[353987426,1740174643441,-500.0,0.00014109,2]
[353987431,1740174643452,-500.0,0.00014109,2]
[353987433,1740174643461,-1673.05,0.00014109,2]
[353987436,1740174643470,-500.0,0.00014109,2]
[353987439,1740174643480,-500.0,0.00014109,2]
[353987442,1740174643489,-558.68,0.00014109,2]
[353987445,1740174643498,-522.04295436,0.00014109,2]
[353987448,1740174643507,-502.0355659,0.00014109,2]
[353987451,1740174643517,-500.0,0.00014109,2]
[353987454,1740174643526,-687.65,0.00014109,2]
[353987457,1740174643535,-7438.69753278,0.00014178,2]
[353987460,1740174643544,-1131.63,0.0001419,2]
[353987463,1740174643552,-500.0,0.00014191,2]
[353987466,1740174643562,-500.0,0.00014191,2]
[353987469,1740174643571,-2257.61,0.00014191,2]
[353987472,1740174643580,-500.0,0.00014191,2]
[353987475,1740174643589,-716.04,0.00014191,2]
[353987478,1740174643598,-500.0,0.00014191,2]
[353987481,1740174643607,-663.3,0.00014191,2]
[353987484,1740174643617,-6139.83,0.00014191,2]
[353987487,1740174643626,-500.0,0.00014191,2]
[353987490,1740174643635,-500.0,0.00014191,2]
[353987493,1740174643644,-500.0,0.00014191,2]
[353987496,1740174643654,-500.0,0.00014191,2]
[353987500,1740174643663,-500.0,0.00014191,2]
[353987503,1740174643673,-1669.65,0.00014191,2]
[353987506,1740174643682,-647.76,0.00014191,2]
[353987509,1740174643691,-500.0,0.00014191,2]
[353987512,1740174643700,-544.3,0.00014191,2]
[353987515,1740174643710,-1165.05,0.00014191,2]
[353987518,1740174643719,-500.0,0.00014191,2]
[353987521,1740174643729,-658.12,0.00014191,2]
[353987524,1740174643739,-3819.04,0.00014191,2]
[353987527,1740174643749,-849.08,0.00014191,2]
[353987530,1740174643759,-500.0,0.00014191,2]
[353987533,1740174643769,-500.0,0.00014191,2]
[353987536,1740174643778,-734.9,0.00014191,2]
[353987539,1740174643787,-500.0,0.00014191,2]
[353987542,1740174643797,-500.0,0.00014191,2]
[353987545,1740174643806,-1673.05,0.00014191,2]
[353987548,1740174643815,-500.0,0.00014191,2]
[353987551,1740174643824,-500.0,0.00014191,2]
[353987554,1740174643834,-558.68,0.00014191,2]
[353987557,1740174643843,-500.0,0.00014191,2]
[353987560,1740174643852,-687.65,0.00014191,2]
[353987563,1740174643861,-151.0,0.000142,2]
[353987579,1740174643870,-151.0,0.000142,2]
[353987582,1740174643961,-180.7191012,0.00014207,2]
[353987585,1740174643971,-500.0,0.00014221,2]
[353987588,1740174643980,-349.23964302,0.00014221,2]
[353987591,1740174643990,-500.0,0.00014273,2]
[353987594,1740174643999,-500.0,0.00014273,2]
[353987597,1740174644008,-2257.61,0.00014273,2]
[353987600,1740174644017,-500.0,0.00014273,2]
[353987603,1740174644026,-716.04,0.00014273,2]
[353987605,1740174644036,-500.0,0.00014273,2]
[353987608,1740174644045,-663.3,0.00014273,2]
[353987610,1740174644054,-6139.83,0.00014273,2]
[353987615,1740174644064,-500.0,0.00014273,2]
[353987617,1740174644073,-500.0,0.00014273,2]
[353987620,1740174644083,-500.0,0.00014273,2]
[353987623,1740174644093,-374.89,0.00014273,2]
[353987626,1740174644103,-500.0,0.00014273,2]
[353987629,1740174644113,-1669.65,0.00014273,2]
[353987632,1740174644122,-647.76,0.00014273,2]
[353987635,1740174644132,-500.0,0.00014273,2]
[353987638,1740174644141,-544.3,0.00014273,2]
[353987641,1740174644151,-1165.05,0.00014273,2]
[353987644,1740174644161,-500.0,0.00014273,2]
[353987647,1740174644170,-658.12,0.00014273,2]
[353987650,1740174644179,-3819.04,0.00014273,2]
[353987653,1740174644192,-849.08,0.00014273,2]
[353987657,1740174644202,-500.0,0.00014273,2]
[353987659,1740174644211,-500.0,0.00014273,2]
[353987662,1740174644220,-734.9,0.00014273,2]
[353987665,1740174644230,-500.0,0.00014273,2]
[353987668,1740174644239,-500.0,0.00014273,2]
[353987671,1740174644248,-1673.05,0.00014273,2]
[353987674,1740174644257,-500.0,0.00014273,2]
[353987677,1740174644267,-500.0,0.00014273,2]
[353987679,1740174644276,-558.68,0.00014273,2]
[353987682,1740174644286,-500.0,0.00014273,2]
[353987685,1740174644295,-687.65,0.00014273,2]
[353987688,1740174644304,-151.0,0.000143,2]
[353987691,1740174644314,-151.0,0.000143,2]
[353987694,1740174644323,-151.0,0.000143,2]
[353987698,1740174644332,-1131.63,0.00014355,2]
[353987701,1740174644343,-500.0,0.00014356,2]
[353987704,1740174644352,-2257.61,0.00014356,2]
[353987706,1740174644361,-500.0,0.00014356,2]
[353987709,1740174644371,-716.04,0.00014356,2]
[353987712,1740174644381,-500.0,0.00014356,2]
[353987714,1740174644390,-663.3,0.00014356,2]
[353987717,1740174644399,-6139.83,0.00014356,2]
[353987720,1740174644408,-500.0,0.00014356,2]
[353987723,1740174644417,-500.0,0.00014356,2]
[353987725,1740174644427,-500.0,0.00014356,2]
[353987727,1740174644436,-500.0,0.00014356,2]
[353987730,1740174644446,-1669.65,0.00014356,2]
[353987732,1740174644455,-647.76,0.00014356,2]
[353987735,1740174644465,-500.0,0.00014356,2]
[353987738,1740174644474,-544.3,0.00014356,2]
[353987741,1740174644483,-1165.05,0.00014356,2]
[353987743,1740174644493,-500.0,0.00014356,2]
[353987746,1740174644502,-658.12,0.00014356,2]
[353987749,1740174644512,-3819.04,0.00014356,2]
[353987751,1740174644521,-849.08,0.00014356,2]
[353987754,1740174644530,-500.0,0.00014356,2]
[353987756,1740174644540,-500.0,0.00014356,2]
[353987757,1740174644549,-734.9,0.00014356,2]
[353987759,1740174644558,-500.0,0.00014356,2]
[353987761,1740174644568,-500.0,0.00014356,2]
[353987763,1740174644577,-1673.05,0.00014356,2]
[353987764,1740174644586,-500.0,0.00014356,2]
[353987766,1740174644595,-236.38337191,0.00014356,2]
[353987768,1740174644604,-558.68,0.00014356,2]
[353987770,1740174644614,-500.0,0.00014356,2]
[353987772,1740174644623,-687.65,0.00014356,2]
[353987773,1740174644632,-151.0,0.000144,2]
[353987775,1740174644642,-151.0,0.000144,2]
[353987777,1740174644651,-180.7191012,0.00014405,2]
[353987779,1740174644660,-1131.63,0.00014437,2]
[353987781,1740174644669,-500.0,0.00014438,2]
[353987782,1740174644678,-2257.61,0.00014438,2]
[353987784,1740174644688,-532.71336587,0.00014438,2]
[353987785,1740174644696,-716.04,0.00014438,2]
[353987786,1740174644705,-500.0,0.00014438,2]
[353987787,1740174644714,-663.3,0.00014438,2]
[353987788,1740174644724,-6139.83,0.00014438,2]
[353987790,1740174644735,-500.0,0.00014438,2]
[353987792,1740174644744,-500.0,0.00014438,2]
[353987793,1740174644754,-500.0,0.00014438,2]
[353987795,1740174644764,-500.0,0.00014438,2]
[353987798,1740174644774,-1669.65,0.00014438,2]
[353987800,1740174644784,-647.76,0.00014438,2]
[353987802,1740174644794,-500.0,0.00014438,2]
[353987804,1740174644803,-544.3,0.00014438,2]
[353987806,1740174644812,-1165.05,0.00014438,2]
[353987808,1740174644821,-500.0,0.00014438,2]
[353987810,1740174644830,-658.12,0.00014438,2]
[353987812,1740174644839,-3819.04,0.00014438,2]
[353987814,1740174644849,-849.08,0.00014438,2]
[353987815,1740174644859,-545.41,0.00014438,2]
[353987818,1740174644868,-500.0,0.00014438,2]
[353987819,1740174644878,-734.9,0.00014438,2]
[353987821,1740174644888,-500.0,0.00014438,2]
[353987823,1740174644897,-500.0,0.00014438,2]
[353987825,1740174644907,-1673.05,0.00014438,2]
[353987827,1740174644916,-305.69,0.00014438,2]
[353987829,1740174644925,-558.68,0.00014438,2]
[353987831,1740174644934,-500.0,0.00014438,2]
[353987833,1740174644943,-687.65,0.00014438,2]
[353987835,1740174644952,-168.2507596,0.00014458,2]
[353987837,1740174644961,-151.0,0.000145,2]
[353987839,1740174644970,-151.0,0.000145,2]
[353987841,1740174644980,-151.0,0.000145,2]
[353987843,1740174644989,-500.0,0.0001452,2]
[353987845,1740174644998,-2257.61,0.0001452,2]
[353987847,1740174645007,-716.04,0.0001452,2]
[353987849,1740174645021,-500.0,0.0001452,2]
[353987851,1740174645031,-663.3,0.0001452,2]
[353987853,1740174645040,-6139.83,0.0001452,2]
[353987855,1740174645049,-500.0,0.0001452,2]
[353987857,1740174645059,-500.0,0.0001452,2]
[353987859,1740174645069,-500.0,0.0001452,2]
[353987861,1740174645078,-500.0,0.0001452,2]
[353987863,1740174645088,-1669.65,0.0001452,2]
[353987865,1740174645098,-647.76,0.0001452,2]
[353987867,1740174645108,-185.26,0.0001452,2]
[353987869,1740174645117,-544.3,0.0001452,2]
[353987871,1740174645127,-1165.05,0.0001452,2]
[353987873,1740174645136,-500.0,0.0001452,2]
[353987875,1740174645146,-658.12,0.0001452,2]
[353987877,1740174645155,-3819.04,0.0001452,2]
[353987879,1740174645164,-849.08,0.0001452,2]
[353987881,1740174645174,-500.0,0.0001452,2]
[353987883,1740174645183,-734.9,0.0001452,2]
[353987885,1740174645194,-500.0,0.0001452,2]
[353987887,1740174645203,-500.0,0.0001452,2]
[353987889,1740174645212,-1673.05,0.0001452,2]
[353987891,1740174645221,-558.68,0.0001452,2]
[353987893,1740174645230,-500.0,0.0001452,2]
[353987895,1740174645241,-687.65,0.0001452,2]
[353987897,1740174645251,-710.2800083,0.00014532,2]
[353987899,1740174645261,-244.994,0.00014586,2]
[353987901,1740174645272,-151.0,0.000146,2]
[353987902,1740174645283,-151.0,0.000146,2]
[353987904,1740174645292,-151.0,0.000146,2]
[353987906,1740174645301,-151.0,0.000146,2]
[353987908,1740174645310,-1131.63,0.000146,2]
[353987910,1740174645320,-2195.8262246,0.00014601,2]
[353987912,1740174645329,-500.0,0.00014602,2]
[353987914,1740174645338,-2257.61,0.00014602,2]
[353987917,1740174645347,-716.04,0.00014602,2]
[353987919,1740174645357,-500.0,0.00014602,2]
[353987922,1740174645366,-663.3,0.00014602,2]
[353987924,1740174645375,-6139.83,0.00014602,2]
[353987926,1740174645384,-558.68,0.00014602,2]
[353987929,1740174645393,-602.68,0.00014602,2]
[353987932,1740174645403,-500.0,0.00014602,2]
[353987936,1740174645412,-500.0,0.00014602,2]
[353987938,1740174645422,-1669.65,0.00014602,2]
[353987940,1740174645431,-647.76,0.00014602,2]
[353987942,1740174645440,-544.3,0.00014602,2]
[353987944,1740174645449,-1165.05,0.00014602,2]
[353987946,1740174645458,-500.0,0.00014602,2]
[353987948,1740174645467,-658.12,0.00014602,2]
[353987950,1740174645477,-3819.04,0.00014602,2]
[353987952,1740174645486,-849.08,0.00014602,2]
[353987954,1740174645495,-500.0,0.00014602,2]
[353987956,1740174645504,-734.9,0.00014602,2]
[353987958,1740174645516,-500.0,0.00014602,2]
[353987960,1740174645525,-500.0,0.00014602,2]
[353987962,1740174645534,-1673.05,0.00014602,2]
[353987964,1740174645543,-558.68,0.00014602,2]
[353987966,1740174645553,-500.0,0.00014602,2]
[353987968,1740174645562,-687.65,0.00014602,2]
[353987970,1740174645571,-180.7191012,0.00014602,2]
[353987972,1740174645581,-1131.63,0.00014678,2]
[353987974,1740174645590,-506.66,0.00014684,2]
[353987976,1740174645599,-2257.61,0.00014684,2]
[353987978,1740174645608,-716.04,0.00014684,2]
[353987980,1740174645618,-500.0,0.00014684,2]
[353987982,1740174645627,-663.3,0.00014684,2]
[353987983,1740174645636,-6139.83,0.00014684,2]
[353987986,1740174645646,-559.95,0.00014684,2]
[353987988,1740174645655,-500.0,0.00014684,2]
[353987989,1740174645664,-1669.65,0.00014684,2]
[353987991,1740174645674,-647.76,0.00014684,2]
[353987994,1740174645683,-544.3,0.00014684,2]
[353987996,1740174645693,-1165.05,0.00014684,2]
[353987998,1740174645702,-500.0,0.00014684,2]
[353988000,1740174645711,-658.12,0.00014684,2]
[353988002,1740174645720,-3819.04,0.00014684,2]
[353988003,1740174645731,-849.08,0.00014684,2]
[353988006,1740174645741,-500.0,0.00014684,2]
[353988008,1740174645750,-734.9,0.00014684,2]
[353988010,1740174645759,-500.0,0.00014684,2]
[353988012,1740174645770,-500.0,0.00014684,2]
[353988013,1740174645780,-1673.05,0.00014684,2]
[353988015,1740174645789,-558.68,0.00014684,2]
[353988017,1740174645799,-500.0,0.00014684,2]
[353988019,1740174645807,-687.65,0.00014684,2]
[353988021,1740174645816,-151.0,0.000147,2]
[353988024,1740174645826,-151.0,0.000147,2]
[353988026,1740174645835,-151.0,0.000147,2]
[353988028,1740174645844,-151.0,0.000147,2]
[353988030,1740174645853,-151.0,0.000147,2]
[353988032,1740174645863,-9881.11112468,0.00014732,2]
[353988034,1740174645872,-1131.63,0.00014766,2]
[353988036,1740174645881,-2257.61,0.00014767,2]
[353988038,1740174645890,-716.04,0.00014767,2]
[353988040,1740174645899,-500.0,0.00014767,2]
[353988042,1740174645909,-663.3,0.00014767,2]
[353988044,1740174645918,-6139.83,0.00014767,2]
[353988046,1740174645927,-500.0,0.00014767,2]
[353988048,1740174645936,-1669.65,0.00014767,2]
[353988050,1740174645946,-647.76,0.00014767,2]
[353988052,1740174645955,-544.3,0.00014767,2]
[353988054,1740174645963,-1165.05,0.00014767,2]
[353988056,1740174645972,-550.12,0.00014767,2]
[353988059,1740174645982,-658.12,0.00014767,2]
[353988062,1740174645991,-3819.04,0.00014767,2]
[353988065,1740174646000,-849.08,0.00014767,2]
[353988067,1740174646009,-500.0,0.00014767,2]
[353988068,1740174646019,-734.9,0.00014767,2]
[353988071,1740174646028,-500.0,0.00014767,2]
[353988072,1740174646038,-500.0,0.00014767,2]
[353988083,1740174646126,-1673.05,0.00014767,2]
[353988085,1740174646136,-558.68,0.00014767,2]
[353988087,1740174646146,-643.41,0.00014767,2]
[353988089,1740174646155,-151.0,0.000148,2]
[353988091,1740174646164,-151.0,0.000148,2]
[353988093,1740174646173,-151.0,0.000148,2]
[353988095,1740174646183,-151.0,0.000148,2]
[353988097,1740174646194,-180.7191012,0.000148,2]
[353988099,1740174646204,-605.68784142,0.000148,2]
[353988101,1740174646213,-605.68784142,0.000148,2]
[353988103,1740174646223,-605.68784142,0.000148,2]
[353988105,1740174646231,-605.68784142,0.000148,2]
[353988107,1740174646241,-605.68784142,0.000148,2]
[353988109,1740174646251,-605.68784142,0.000148,2]
[353988111,1740174646261,-605.68784142,0.000148,2]
[353988113,1740174646271,-605.68784142,0.000148,2]
[353988115,1740174646280,-605.68784142,0.000148,2]
[353988117,1740174646290,-605.68784142,0.000148,2]
[353988119,1740174646299,-605.68784142,0.000148,2]
[353988121,1740174646309,-605.68784142,0.000148,2]
[353988123,1740174646318,-605.68784142,0.000148,2]
[353988125,1740174646327,-605.68784142,0.000148,2]
[353988127,1740174646338,-605.68784142,0.000148,2]
[353988129,1740174646347,-605.68784142,0.000148,2]
[353988131,1740174646356,-605.68784142,0.000148,2]
[353988133,1740174646366,-605.68784142,0.000148,2]
[353988135,1740174646375,-605.68784142,0.000148,2]
[353988137,1740174646385,-605.68,0.000148,2]
[353988139,1740174646394,-1413.27162999,0.000148,2]
[353988141,1740174646404,-1413.27162999,0.000148,2]
[353988143,1740174646413,-1413.27162999,0.000148,2]
[353988145,1740174646423,-1413.27162999,0.000148,2]
[353988147,1740174646432,-1413.27162999,0.000148,2]
[353988149,1740174646442,-1413.27162999,0.000148,2]
[353988151,1740174646451,-1413.27162999,0.000148,2]